[Event "Titled Tuesday Blitz February 14 Early 2023"]
[White "Berezin, Viktor"]
[Black "Titichoca Daza, Daniel"]
[WhiteFideId "14107872"]
[BlackFideId "3309550"]
[WhiteElo "2307"]
[BlackElo "2180"]
[Result "1-0"]
[Round "03"]
[TimeControl "180+2"]
[Date "2023.02.15"]
[WhiteClock "0:01:32"]
[BlackClock "0:02:09"]

1. d4 {[%clk 0:03:00]}  Nf6 {[%clk 0:02:59]} 2. Nf3 {[%clk 0:03:00]}  c5 {[%clk 0:02:59]} 3. d5 {[%clk 0:03:00]}  d6 {[%clk 0:02:57]} 4. Nc3 {[%clk 0:03:00]}  e5 {[%clk 0:02:57]} 5. e4 {[%clk 0:03:00]}  Be7 {[%clk 0:02:57]} 6. g3 {[%clk 0:02:59]}  O-O {[%clk 0:02:58]} 7. Bg2 {[%clk 0:02:59]}  a6 {[%clk 0:02:53]} 8. a4 {[%clk 0:02:59]}  Bg4 {[%clk 0:02:52]} 9. O-O {[%clk 0:02:59]}  Ne8 {[%clk 0:02:50]} 10. h3 {[%clk 0:02:58]}  Bxf3 {[%clk 0:02:50]} 11. Qxf3 {[%clk 0:02:59]}  Bg5 {[%clk 0:02:50]} 12. Qd3 {[%clk 0:02:58]}  Bxc1 {[%clk 0:02:49]} 13. Raxc1 {[%clk 0:02:58]}  Nd7 {[%clk 0:02:49]} 14. f4 {[%clk 0:02:58]}  Rb8 {[%clk 0:02:47]} 15. f5 {[%clk 0:02:55]}  Nc7 {[%clk 0:02:45]} 16. a5 {[%clk 0:02:54]}  b5 {[%clk 0:02:38]} 17. axb6 {[%clk 0:02:54]}  Nxb6 {[%clk 0:02:32]} 18. b3 {[%clk 0:02:53]}  Nb5 {[%clk 0:02:28]} 19. Ra1 {[%clk 0:02:21]}  Nd4 {[%clk 0:02:14]} 20. f6 {[%clk 0:02:17]}  gxf6 {[%clk 0:02:11]} 21. Rxa6 {[%clk 0:02:14]}  c4 {[%clk 0:02:11]} 22. bxc4 {[%clk 0:02:05]}  Rc8 {[%clk 0:02:11]} 23. Qd2 {[%clk 0:01:32]}  Rc6 {[%clk 0:02:09]} 24. dxc6 {[%clk 0:01:32]} 1-0


[Site "https://www.chess.com"]

[Event "Titled Tuesday Blitz February 14 Early 2023"]
[White "Maltsevskaya, Aleksandra"]
[Black "Harriott, Tyrell"]
[WhiteFideId "24174041"]
[BlackFideId "2086484"]
[WhiteElo "2390"]
[BlackElo "1889"]
[Result "1-0"]
[Round "03"]
[TimeControl "180+2"]
[Date "2023.02.15"]
[WhiteClock "0:01:27"]
[BlackClock "0:00:13"]

1. Nf3 {[%clk 0:03:00]}  e6 {[%clk 0:02:58]} 2. d3 {[%clk 0:03:01]}  d5 {[%clk 0:02:58]} 3. Nbd2 {[%clk 0:03:02]}  f5 {[%clk 0:02:57]} 4. g3 {[%clk 0:03:03]}  Bd6 {[%clk 0:02:57]} 5. Bg2 {[%clk 0:03:04]}  Nf6 {[%clk 0:02:57]} 6. O-O {[%clk 0:03:05]}  f4 {[%clk 0:02:57]} 7. c3 {[%clk 0:03:02]}  fxg3 {[%clk 0:02:55]} 8. hxg3 {[%clk 0:03:01]}  O-O {[%clk 0:02:55]} 9. e4 {[%clk 0:03:01]}  Ng4 {[%clk 0:02:55]} 10. d4 {[%clk 0:03:00]}  Qe8 {[%clk 0:02:55]} 11. e5 {[%clk 0:02:59]}  Be7 {[%clk 0:02:53]} 12. Nh2 {[%clk 0:02:56]}  Nxh2 {[%clk 0:02:51]} 13. Kxh2 {[%clk 0:02:57]}  c5 {[%clk 0:02:51]} 14. f4 {[%clk 0:02:57]}  cxd4 {[%clk 0:02:48]} 15. cxd4 {[%clk 0:02:57]}  Nc6 {[%clk 0:02:48]} 16. Nf3 {[%clk 0:02:58]}  Qh5+ {[%clk 0:02:41]} 17. Bh3 {[%clk 0:02:55]}  Bd7 {[%clk 0:02:39]} 18. Be3 {[%clk 0:02:54]}  Nb4 {[%clk 0:02:30]} 19. a3 {[%clk 0:02:54]}  Nc6 {[%clk 0:02:27]} 20. Rc1 {[%clk 0:02:48]}  Rac8 {[%clk 0:02:25]} 21. b4 {[%clk 0:02:42]}  a6 {[%clk 0:02:10]} 22. Qd3 {[%clk 0:02:42]}  Na7 {[%clk 0:02:04]} 23. g4 {[%clk 0:02:26]}  Qe8 {[%clk 0:01:52]} 24. g5 {[%clk 0:02:17]}  Qh5 {[%clk 0:01:48]} 25. Kg3 {[%clk 0:02:16]}  Kf7 {[%clk 0:01:34]} 26. Nh4 {[%clk 0:01:50]}  Bb5 {[%clk 0:01:10]} 27. Qd2 {[%clk 0:01:50]}  Bxf1 {[%clk 0:00:36]} 28. Bg4 {[%clk 0:01:49]}  Qxh4+ {[%clk 0:00:29]} 29. Kxh4 {[%clk 0:01:49]}  Rxc1 {[%clk 0:00:23]} 30. Qxc1 {[%clk 0:01:50]}  Bb5 {[%clk 0:00:20]} 31. Qc7 {[%clk 0:01:36]}  Bc6 {[%clk 0:00:21]} 32. f5 {[%clk 0:01:35]}  Nb5 {[%clk 0:00:19]} 33. fxe6+ {[%clk 0:01:31]}  Ke8 {[%clk 0:00:18]} 34. Qc8+ {[%clk 0:01:29]}  Bd8 {[%clk 0:00:18]} 35. e7 {[%clk 0:01:27]}  Kxe7 {[%clk 0:00:13]} 36. Qe6# {[%clk 0:01:27]} 1-0


[Site "https://www.chess.com"]

[Event "Titled Tuesday Blitz February 14 Early 2023"]
[White "Orzech, Dominik"]
[Black "Rian, Kapriaga"]
[WhiteFideId "1115065"]
[BlackFideId "7103263"]
[WhiteElo "2308"]
[BlackElo "2089"]
[Result "0-1"]
[Round "03"]
[TimeControl "180+2"]
[Date "2023.02.15"]
[WhiteClock "0:01:18"]
[BlackClock "0:01:48"]

1. e4 {[%clk 0:03:00]}  c6 {[%clk 0:02:59]} 2. d4 {[%clk 0:02:49]}  d5 {[%clk 0:02:59]} 3. Nc3 {[%clk 0:02:49]}  dxe4 {[%clk 0:02:59]} 4. Nxe4 {[%clk 0:02:48]}  Bf5 {[%clk 0:02:59]} 5. Ng3 {[%clk 0:02:48]}  Bg6 {[%clk 0:02:59]} 6. Nf3 {[%clk 0:02:36]}  Nd7 {[%clk 0:02:58]} 7. Bd3 {[%clk 0:02:34]}  e6 {[%clk 0:02:56]} 8. O-O {[%clk 0:02:33]}  Bd6 {[%clk 0:02:54]} 9. Bxg6 {[%clk 0:02:32]}  hxg6 {[%clk 0:02:53]} 10. Ne4 {[%clk 0:02:31]}  Bxh2+ {[%clk 0:02:29]} 11. Nxh2 {[%clk 0:02:10]}  Qh4 {[%clk 0:02:28]} 12. f3 {[%clk 0:01:25]}  Qxh2+ {[%clk 0:02:09]} 13. Kf2 {[%clk 0:01:25]}  Ngf6 {[%clk 0:02:04]} 14. Rh1 {[%clk 0:01:21]}  Nxe4+ {[%clk 0:01:49]} 15. fxe4 {[%clk 0:01:19]}  Qxh1 {[%clk 0:01:48]} 16. Qxh1 {[%clk 0:01:18]}  Rxh1 {[%clk 0:01:48]} 0-1


[Site "https://www.chess.com"]

[Event "Titled Tuesday Blitz February 14 Early 2023"]
[White "Shapiro, Viktor"]
[Black "Guo, Josh"]
[WhiteFideId "4175700"]
[BlackFideId "2682427"]
[WhiteElo "2192"]
[BlackElo "2112"]
[Result "1-0"]
[Round "03"]
[TimeControl "180+2"]
[Date "2023.02.15"]
[WhiteClock "0:01:50"]
[BlackClock "0:00:02"]

1. c4 {[%clk 0:03:00]}  c5 {[%clk 0:02:58]} 2. Nc3 {[%clk 0:03:00]}  Nc6 {[%clk 0:02:58]} 3. g3 {[%clk 0:03:01]}  g6 {[%clk 0:02:59]} 4. Bg2 {[%clk 0:03:01]}  Bg7 {[%clk 0:03:00]} 5. Nf3 {[%clk 0:03:02]}  e6 {[%clk 0:03:00]} 6. d3 {[%clk 0:03:02]}  Nge7 {[%clk 0:03:00]} 7. O-O {[%clk 0:03:03]}  O-O {[%clk 0:02:59]} 8. a3 {[%clk 0:03:01]}  d5 {[%clk 0:02:56]} 9. cxd5 {[%clk 0:03:00]}  Nxd5 {[%clk 0:02:51]} 10. Bd2 {[%clk 0:03:00]}  b6 {[%clk 0:02:40]} 11. Rc1 {[%clk 0:02:59]}  Bb7 {[%clk 0:02:39]} 12. h4 {[%clk 0:02:53]}  h5 {[%clk 0:02:21]} 13. Nxd5 {[%clk 0:02:48]}  Qxd5 {[%clk 0:02:01]} 14. b4 {[%clk 0:02:48]}  cxb4 {[%clk 0:01:30]} 15. axb4 {[%clk 0:02:47]}  Qd7 {[%clk 0:01:21]} 16. b5 {[%clk 0:02:45]}  Nd4 {[%clk 0:01:21]} 17. Nxd4 {[%clk 0:02:43]}  Bxg2 {[%clk 0:01:21]} 18. Kxg2 {[%clk 0:02:40]}  Bxd4 {[%clk 0:01:15]} 19. Qb3 {[%clk 0:02:39]}  Rfc8 {[%clk 0:01:08]} 20. Rc4 {[%clk 0:02:28]}  Rxc4 {[%clk 0:00:59]} 21. Qxc4 {[%clk 0:02:27]}  Rc8 {[%clk 0:00:59]} 22. Qb3 {[%clk 0:02:26]}  Qd5+ {[%clk 0:00:41]} 23. Qxd5 {[%clk 0:02:26]}  exd5 {[%clk 0:00:42]} 24. Rc1 {[%clk 0:02:26]}  Rxc1 {[%clk 0:00:39]} 25. Bxc1 {[%clk 0:02:26]}  f5 {[%clk 0:00:33]} 26. f3 {[%clk 0:02:23]}  Kf7 {[%clk 0:00:32]} 27. e4 {[%clk 0:02:23]}  Ke6 {[%clk 0:00:33]} 28. g4 {[%clk 0:02:18]}  fxg4 {[%clk 0:00:28]} 29. fxg4 {[%clk 0:02:15]}  dxe4 {[%clk 0:00:24]} 30. dxe4 {[%clk 0:02:15]}  Kd6 {[%clk 0:00:25]} 31. gxh5 {[%clk 0:02:02]}  gxh5 {[%clk 0:00:24]} 32. Ba3+ {[%clk 0:02:02]}  Bc5 {[%clk 0:00:24]} 33. Bb2 {[%clk 0:02:01]}  Bb4 {[%clk 0:00:15]} 34. Bd4 {[%clk 0:01:58]}  Bc5 {[%clk 0:00:15]} 35. Bg7 {[%clk 0:01:58]}  Ke6 {[%clk 0:00:04]} 36. Kf3 {[%clk 0:01:57]}  Bd6 {[%clk 0:00:04]} 37. Bd4 {[%clk 0:01:53]}  Bb4 {[%clk 0:00:02]} 38. Bf2 {[%clk 0:01:52]}  Bd6 {[%clk 0:00:02]} 39. Be3 {[%clk 0:01:51]}  Be5 {[%clk 0:00:02]} 40. Bf4 {[%clk 0:01:51]}  Bd4 {[%clk 0:00:02]} 41. Bb8 {[%clk 0:01:50]} 1-0


[Site "https://www.chess.com"]

[Event "Titled Tuesday Blitz February 14 Early 2023"]
[White "Lacasa Diaz, Jose Antonio"]
[Black "Sharapov, Evgeny"]
[WhiteFideId "2203375"]
[BlackFideId "14103133"]
[WhiteElo "2359"]
[BlackElo "2375"]
[Result "0-1"]
[Round "03"]
[TimeControl "180+2"]
[Date "2023.02.15"]
[WhiteClock "0:01:02"]
[BlackClock "0:01:39"]

1. e4 {[%clk 0:03:00]}  c5 {[%clk 0:02:59]} 2. Nf3 {[%clk 0:03:00]}  d6 {[%clk 0:02:59]} 3. Bb5+ {[%clk 0:03:00]}  Nd7 {[%clk 0:02:59]} 4. a4 {[%clk 0:02:59]}  Nf6 {[%clk 0:02:58]} 5. Nc3 {[%clk 0:02:57]}  e5 {[%clk 0:02:58]} 6. d3 {[%clk 0:02:48]}  Be7 {[%clk 0:02:57]} 7. O-O {[%clk 0:02:47]}  O-O {[%clk 0:02:57]} 8. Bg5 {[%clk 0:02:44]}  Ne8 {[%clk 0:02:53]} 9. Be3 {[%clk 0:02:43]}  Nc7 {[%clk 0:02:53]} 10. Nd2 {[%clk 0:02:35]}  Nxb5 {[%clk 0:02:50]} 11. axb5 {[%clk 0:02:34]}  b6 {[%clk 0:02:45]} 12. Nd5 {[%clk 0:02:28]}  Bb7 {[%clk 0:02:43]} 13. c4 {[%clk 0:02:27]}  a6 {[%clk 0:02:43]} 14. bxa6 {[%clk 0:02:24]}  Rxa6 {[%clk 0:02:42]} 15. Rxa6 {[%clk 0:02:23]}  Bxa6 {[%clk 0:02:42]} 16. Qa4 {[%clk 0:02:16]}  Bb7 {[%clk 0:02:42]} 17. f4 {[%clk 0:02:10]}  Bxd5 {[%clk 0:02:37]} 18. cxd5 {[%clk 0:02:07]}  exf4 {[%clk 0:02:31]} 19. Bxf4 {[%clk 0:02:07]}  Bg5 {[%clk 0:02:25]} 20. Bxg5 {[%clk 0:01:51]}  Qxg5 {[%clk 0:02:25]} 21. Nc4 {[%clk 0:01:51]}  Ne5 {[%clk 0:02:24]} 22. Nxd6 {[%clk 0:01:36]}  Qe3+ {[%clk 0:02:22]} 23. Kh1 {[%clk 0:01:33]}  Nxd3 {[%clk 0:02:21]} 24. h3 {[%clk 0:01:17]}  Nf2+ {[%clk 0:02:06]} 25. Kh2 {[%clk 0:01:14]}  Qf4+ {[%clk 0:02:02]} 26. Kg1 {[%clk 0:01:13]}  Nxh3+ {[%clk 0:02:02]} 27. gxh3 {[%clk 0:01:13]}  Qg3+ {[%clk 0:02:00]} 28. Kh1 {[%clk 0:01:10]}  Qxh3+ {[%clk 0:02:00]} 29. Kg1 {[%clk 0:01:11]}  Qg3+ {[%clk 0:02:01]} 30. Kh1 {[%clk 0:01:11]}  Qxd6 {[%clk 0:02:01]} 31. Qc2 {[%clk 0:01:07]}  f6 {[%clk 0:01:54]} 32. Qg2 {[%clk 0:01:04]}  Re8 {[%clk 0:01:48]} 33. Rg1 {[%clk 0:01:04]}  Re7 {[%clk 0:01:47]} 34. Qg4 {[%clk 0:01:04]}  Qe5 {[%clk 0:01:41]} 35. b3 {[%clk 0:01:04]}  Qxe4+ {[%clk 0:01:40]} 36. Qxe4 {[%clk 0:01:02]}  Rxe4 {[%clk 0:01:39]} 37. Rd1 {[%clk 0:01:02]}  Rd4 {[%clk 0:01:39]} 0-1


[Site "https://www.chess.com"]

[Event "Titled Tuesday Blitz February 14 Early 2023"]
[White "Jiganchine, Roman"]
[Black "Veiga, Jose Francisco R P Neves"]
[WhiteFideId "2603667"]
[BlackFideId "1930087"]
[WhiteElo "2205"]
[BlackElo "2406"]
[Result "0-1"]
[Round "03"]
[TimeControl "180+2"]
[Date "2023.02.15"]
[WhiteClock "0:00:01"]
[BlackClock "0:00:04"]

1. e4 {[%clk 0:03:00]}  Nc6 {[%clk 0:02:59]} 2. Nf3 {[%clk 0:02:59]}  e5 {[%clk 0:02:58]} 3. Nc3 {[%clk 0:02:58]}  Nf6 {[%clk 0:02:50]} 4. Bb5 {[%clk 0:02:57]}  Bd6 {[%clk 0:02:50]} 5. d3 {[%clk 0:02:47]}  h6 {[%clk 0:02:49]} 6. a3 {[%clk 0:02:45]}  O-O {[%clk 0:02:48]} 7. g4 {[%clk 0:02:39]}  a6 {[%clk 0:02:42]} 8. Bxc6 {[%clk 0:02:38]}  dxc6 {[%clk 0:02:42]} 9. g5 {[%clk 0:02:32]}  hxg5 {[%clk 0:02:41]} 10. Bxg5 {[%clk 0:02:32]}  Bc5 {[%clk 0:02:36]} 11. Rg1 {[%clk 0:02:23]}  Qd6 {[%clk 0:02:35]} 12. Qd2 {[%clk 0:02:17]}  Ng4 {[%clk 0:02:25]} 13. Rg2 {[%clk 0:02:05]}  f6 {[%clk 0:01:35]} 14. Bh4 {[%clk 0:02:01]}  Kh7 {[%clk 0:01:20]} 15. O-O-O {[%clk 0:01:59]}  Be6 {[%clk 0:01:17]} 16. Nb1 {[%clk 0:01:30]}  b5 {[%clk 0:01:14]} 17. Rdg1 {[%clk 0:01:23]}  Qd7 {[%clk 0:01:05]} 18. h3 {[%clk 0:01:20]}  Nh6 {[%clk 0:01:05]} 19. b4 {[%clk 0:01:00]}  Bb6 {[%clk 0:01:04]} 20. Rxg7+ {[%clk 0:00:49]}  Qxg7 {[%clk 0:01:05]} 21. Rxg7+ {[%clk 0:00:49]}  Kxg7 {[%clk 0:01:06]} 22. Nc3 {[%clk 0:00:38]}  a5 {[%clk 0:00:58]} 23. d4 {[%clk 0:00:31]}  axb4 {[%clk 0:00:57]} 24. axb4 {[%clk 0:00:22]}  Rad8 {[%clk 0:00:53]} 25. Bxf6+ {[%clk 0:00:17]}  Rxf6 {[%clk 0:00:43]} 26. Qg5+ {[%clk 0:00:16]}  Rg6 {[%clk 0:00:26]} 27. Qxe5+ {[%clk 0:00:16]}  Kg8 {[%clk 0:00:20]} 28. d5 {[%clk 0:00:15]}  Nf7 {[%clk 0:00:17]} 29. Qf4 {[%clk 0:00:14]}  cxd5 {[%clk 0:00:17]} 30. exd5 {[%clk 0:00:11]}  Bxd5 {[%clk 0:00:14]} 31. Ne5 {[%clk 0:00:09]}  Nxe5 {[%clk 0:00:12]} 32. Qxe5 {[%clk 0:00:10]}  Bf7 {[%clk 0:00:13]} 33. Ne4 {[%clk 0:00:08]}  Bd4 {[%clk 0:00:07]} 34. Qxc7 {[%clk 0:00:08]}  Re8 {[%clk 0:00:05]} 35. f3 {[%clk 0:00:06]}  Be3+ {[%clk 0:00:04]} 36. Kb2 {[%clk 0:00:06]}  Bd4+ {[%clk 0:00:03]} 37. c3 {[%clk 0:00:06]}  Be5 {[%clk 0:00:03]} 38. Qd7 {[%clk 0:00:03]}  Ra8 {[%clk 0:00:03]} 39. Kc2 {[%clk 0:00:01]}  Ra2+ {[%clk 0:00:03]} 40. Kd3 {[%clk 0:00:01]}  Bc4+ {[%clk 0:00:04]} 41. Ke3 {[%clk 0:00:01]}  Re2# {[%clk 0:00:04]} 0-1


[Site "https://www.chess.com"]

[Event "Titled Tuesday Blitz February 14 Early 2023"]
[White "Martin Duque, Jesus"]
[Black "Skuhala, Barbara"]
[WhiteFideId "2208954"]
[BlackFideId "14605465"]
[WhiteElo "2386"]
[BlackElo "2153"]
[Result "0-1"]
[Round "03"]
[TimeControl "180+2"]
[Date "2023.02.15"]
[WhiteClock "0:00:06"]
[BlackClock "0:00:24"]

1. b3 {[%clk 0:02:57]}  d5 {[%clk 0:02:51]} 2. Bb2 {[%clk 0:02:56]}  Nf6 {[%clk 0:02:50]} 3. e3 {[%clk 0:02:55]}  Nc6 {[%clk 0:02:47]} 4. Nf3 {[%clk 0:02:55]}  e6 {[%clk 0:02:47]} 5. Bb5 {[%clk 0:02:54]}  Bd6 {[%clk 0:02:46]} 6. O-O {[%clk 0:02:47]}  O-O {[%clk 0:02:46]} 7. d4 {[%clk 0:02:41]}  a6 {[%clk 0:02:45]} 8. Be2 {[%clk 0:01:46]}  Ne7 {[%clk 0:02:42]} 9. c4 {[%clk 0:01:41]}  b6 {[%clk 0:02:37]} 10. Nbd2 {[%clk 0:01:38]}  c5 {[%clk 0:02:26]} 11. dxc5 {[%clk 0:01:37]}  bxc5 {[%clk 0:02:24]} 12. Bxf6 {[%clk 0:01:36]}  gxf6 {[%clk 0:02:22]} 13. cxd5 {[%clk 0:01:35]}  Nxd5 {[%clk 0:02:21]} 14. Ne4 {[%clk 0:01:33]}  Be7 {[%clk 0:02:14]} 15. Rc1 {[%clk 0:01:33]}  Qa5 {[%clk 0:02:12]} 16. Nfd2 {[%clk 0:01:24]}  f5 {[%clk 0:01:41]} 17. Nc4 {[%clk 0:01:13]}  Qc7 {[%clk 0:01:39]} 18. Nc3 {[%clk 0:01:07]}  Bb7 {[%clk 0:01:38]} 19. Bf3 {[%clk 0:01:04]}  Nxc3 {[%clk 0:01:32]} 20. Rxc3 {[%clk 0:01:03]}  Rad8 {[%clk 0:01:32]} 21. Qe2 {[%clk 0:01:03]}  Bf6 {[%clk 0:01:32]} 22. Rc2 {[%clk 0:01:00]}  Bxf3 {[%clk 0:01:31]} 23. Qxf3 {[%clk 0:01:00]}  Kh8 {[%clk 0:01:32]} 24. g3 {[%clk 0:00:58]}  Rg8 {[%clk 0:01:32]} 25. Rfc1 {[%clk 0:00:58]}  Be7 {[%clk 0:01:30]} 26. Qh5 {[%clk 0:00:57]}  Rg6 {[%clk 0:01:30]} 27. Nd2 {[%clk 0:00:53]}  Rdg8 {[%clk 0:01:27]} 28. Nf3 {[%clk 0:00:51]}  f4 {[%clk 0:01:27]} 29. Ne5 {[%clk 0:00:47]}  fxg3 {[%clk 0:00:51]} 30. hxg3 {[%clk 0:00:31]}  Rf6 {[%clk 0:00:49]} 31. Nxf7+ {[%clk 0:00:25]}  Kg7 {[%clk 0:00:46]} 32. Ne5 {[%clk 0:00:24]}  Rf5 {[%clk 0:00:45]} 33. Qg4+ {[%clk 0:00:17]}  Kf8 {[%clk 0:00:45]} 34. Qh3 {[%clk 0:00:10]}  Qxe5 {[%clk 0:00:44]} 35. b4 {[%clk 0:00:10]}  Rfg5 {[%clk 0:00:41]} 36. Kf1 {[%clk 0:00:08]}  cxb4 {[%clk 0:00:27]} 37. Qxh7 {[%clk 0:00:08]}  R5g7 {[%clk 0:00:25]} 38. Rc8+ {[%clk 0:00:07]}  Kf7 {[%clk 0:00:25]} 39. Qh5+ {[%clk 0:00:06]}  Qxh5 {[%clk 0:00:24]} 0-1


[Site "https://www.chess.com"]

[Event "Titled Tuesday Blitz February 14 Early 2023"]
[White "Piriflillo"]
[Black "Pinheiro, Iung Alicio de O."]
[BlackFideId "2104350"]
[WhiteElo "2337"]
[BlackElo "2306"]
[Result "1-0"]
[Round "03"]
[TimeControl "180+2"]
[Date "2023.02.15"]
[WhiteClock "0:00:17"]
[BlackClock "0:00:12"]

1. e4 {[%clk 0:03:00]}  c5 {[%clk 0:02:59]} 2. Nf3 {[%clk 0:02:58]}  Nc6 {[%clk 0:02:58]} 3. Bb5 {[%clk 0:02:58]}  e5 {[%clk 0:02:57]} 4. O-O {[%clk 0:02:54]}  Bd6 {[%clk 0:02:56]} 5. c3 {[%clk 0:02:54]}  a6 {[%clk 0:02:56]} 6. Bxc6 {[%clk 0:02:52]}  dxc6 {[%clk 0:02:55]} 7. d4 {[%clk 0:02:53]}  exd4 {[%clk 0:02:55]} 8. cxd4 {[%clk 0:02:53]}  Bg4 {[%clk 0:02:55]} 9. dxc5 {[%clk 0:02:45]}  Bxc5 {[%clk 0:02:35]} 10. Qc2 {[%clk 0:02:45]}  Qe7 {[%clk 0:02:16]} 11. Nbd2 {[%clk 0:02:37]}  Nf6 {[%clk 0:02:14]} 12. h3 {[%clk 0:02:28]}  Bh5 {[%clk 0:02:03]} 13. e5 {[%clk 0:02:24]}  Nd7 {[%clk 0:01:40]} 14. g4 {[%clk 0:02:05]}  Bg6 {[%clk 0:01:39]} 15. Qc3 {[%clk 0:02:03]}  h5 {[%clk 0:01:34]} 16. g5 {[%clk 0:01:59]}  h4 {[%clk 0:01:28]} 17. Nb3 {[%clk 0:01:57]}  Bb4 {[%clk 0:01:00]} 18. Qc4 {[%clk 0:01:48]}  Nb6 {[%clk 0:00:48]} 19. Qg4 {[%clk 0:01:42]}  Bd3 {[%clk 0:00:34]} 20. Rd1 {[%clk 0:01:30]}  Bc2 {[%clk 0:00:32]} 21. Rd4 {[%clk 0:01:22]}  Nd5 {[%clk 0:00:32]} 22. Bd2 {[%clk 0:01:13]}  a5 {[%clk 0:00:30]} 23. Rc1 {[%clk 0:01:01]}  Bg6 {[%clk 0:00:29]} 24. Bxb4 {[%clk 0:00:59]}  axb4 {[%clk 0:00:29]} 25. Nc5 {[%clk 0:00:54]}  Bh5 {[%clk 0:00:24]} 26. Qxh4 {[%clk 0:00:50]}  O-O-O {[%clk 0:00:24]} 27. Rg4 {[%clk 0:00:38]}  Bxg4 {[%clk 0:00:23]} 28. Qxg4+ {[%clk 0:00:39]}  Kb8 {[%clk 0:00:23]} 29. e6 {[%clk 0:00:30]}  fxe6 {[%clk 0:00:22]} 30. Nxe6 {[%clk 0:00:29]}  Rd6 {[%clk 0:00:19]} 31. Ned4 {[%clk 0:00:28]}  Re8 {[%clk 0:00:18]} 32. Nf5 {[%clk 0:00:27]}  Qd7 {[%clk 0:00:18]} 33. Nxd6 {[%clk 0:00:27]}  Qxd6 {[%clk 0:00:19]} 34. Re1 {[%clk 0:00:25]}  Rf8 {[%clk 0:00:17]} 35. Qh5 {[%clk 0:00:18]}  Qf4 {[%clk 0:00:16]} 36. Re8+ {[%clk 0:00:18]}  Rxe8 {[%clk 0:00:14]} 37. Qxe8+ {[%clk 0:00:19]}  Ka7 {[%clk 0:00:15]} 38. Kg2 {[%clk 0:00:16]}  Qf5 {[%clk 0:00:14]} 39. Qe5 {[%clk 0:00:11]}  Nf4+ {[%clk 0:00:12]} 40. Kg3 {[%clk 0:00:12]}  Nh5+ {[%clk 0:00:11]} 41. Kg2 {[%clk 0:00:11]}  Qd3 {[%clk 0:00:09]} 42. Qe3+ {[%clk 0:00:10]}  Qxe3 {[%clk 0:00:08]} 43. fxe3 {[%clk 0:00:11]}  g6 {[%clk 0:00:09]} 44. Ne5 {[%clk 0:00:11]}  Kb6 {[%clk 0:00:08]} 45. Nxg6 {[%clk 0:00:11]}  Kc5 {[%clk 0:00:09]} 46. Nf4 {[%clk 0:00:11]}  Ng7 {[%clk 0:00:08]} 47. h4 {[%clk 0:00:12]}  Kc4 {[%clk 0:00:09]} 48. h5 {[%clk 0:00:12]}  Nf5 {[%clk 0:00:09]} 49. h6 {[%clk 0:00:12]}  Nxe3+ {[%clk 0:00:10]} 50. Kf3 {[%clk 0:00:12]}  Nf5 {[%clk 0:00:10]} 51. h7 {[%clk 0:00:12]}  Nh4+ {[%clk 0:00:07]} 52. Kg4 {[%clk 0:00:12]}  Ng6 {[%clk 0:00:08]} 53. Nxg6 {[%clk 0:00:11]}  b3 {[%clk 0:00:09]} 54. axb3+ {[%clk 0:00:10]}  Kxb3 {[%clk 0:00:10]} 55. h8=Q {[%clk 0:00:11]}  b5 {[%clk 0:00:09]} 56. Qc3+ {[%clk 0:00:12]}  Ka2 {[%clk 0:00:10]} 57. Qxc6 {[%clk 0:00:12]}  b4 {[%clk 0:00:10]} 58. Qb5 {[%clk 0:00:12]}  b3 {[%clk 0:00:09]} 59. Qxb3+ {[%clk 0:00:13]}  Kxb3 {[%clk 0:00:09]} 60. Nf4 {[%clk 0:00:14]}  Kxb2 {[%clk 0:00:10]} 61. g6 {[%clk 0:00:15]}  Kc3 {[%clk 0:00:11]} 62. g7 {[%clk 0:00:16]}  Kd4 {[%clk 0:00:12]} 63. g8=Q {[%clk 0:00:16]}  Ke4 {[%clk 0:00:13]} 64. Qe6+ {[%clk 0:00:17]}  Kd4 {[%clk 0:00:13]} 65. Kf3 {[%clk 0:00:17]}  Kc3 {[%clk 0:00:13]} 66. Qd7 {[%clk 0:00:18]}  Kc4 {[%clk 0:00:13]} 67. Ke4 {[%clk 0:00:17]}  Kc5 {[%clk 0:00:13]} 68. Qc7+ {[%clk 0:00:17]}  Kb5 {[%clk 0:00:13]} 69. Kd5 {[%clk 0:00:17]}  Kb4 {[%clk 0:00:11]} 70. Qc4+ {[%clk 0:00:16]}  Ka3 {[%clk 0:00:12]} 71. Qb5 {[%clk 0:00:17]}  Ka2 {[%clk 0:00:12]} 72. Kc4 {[%clk 0:00:17]}  Ka3 {[%clk 0:00:12]} 73. Qb3# {[%clk 0:00:17]} 1-0


[Site "https://www.chess.com"]

[Event "Titled Tuesday Blitz February 14 Early 2023"]
[White "Parpiev, Isaak"]
[Black "Koridze, Lile"]
[WhiteFideId "34281576"]
[BlackFideId "13612514"]
[WhiteElo "2167"]
[BlackElo "2191"]
[Result "0-1"]
[Round "03"]
[TimeControl "180+2"]
[Date "2023.02.15"]
[WhiteClock "0:00:03"]
[BlackClock "0:00:10"]

1. Nf3 {[%clk 0:03:00]}  Nf6 {[%clk 0:02:58]} 2. g3 {[%clk 0:03:01]}  b5 {[%clk 0:02:58]} 3. Bg2 {[%clk 0:03:01]}  Bb7 {[%clk 0:02:57]} 4. O-O {[%clk 0:03:02]}  e6 {[%clk 0:02:56]} 5. d3 {[%clk 0:03:02]}  c5 {[%clk 0:02:53]} 6. e4 {[%clk 0:03:02]}  d6 {[%clk 0:02:53]} 7. c3 {[%clk 0:03:00]}  Be7 {[%clk 0:02:52]} 8. Nbd2 {[%clk 0:02:58]}  O-O {[%clk 0:02:52]} 9. Re1 {[%clk 0:02:56]}  Nbd7 {[%clk 0:02:50]} 10. d4 {[%clk 0:02:53]}  e5 {[%clk 0:02:23]} 11. dxe5 {[%clk 0:02:43]}  Nxe5 {[%clk 0:02:16]} 12. Nxe5 {[%clk 0:02:40]}  dxe5 {[%clk 0:02:16]} 13. Qe2 {[%clk 0:02:41]}  Qb6 {[%clk 0:02:13]} 14. Nf1 {[%clk 0:02:35]}  Rfd8 {[%clk 0:02:11]} 15. Bg5 {[%clk 0:02:34]}  h6 {[%clk 0:02:11]} 16. Bxf6 {[%clk 0:02:34]}  Bxf6 {[%clk 0:02:12]} 17. Ne3 {[%clk 0:02:35]}  Rac8 {[%clk 0:02:08]} 18. Nd5 {[%clk 0:02:35]}  Bxd5 {[%clk 0:02:09]} 19. exd5 {[%clk 0:02:36]}  c4 {[%clk 0:02:09]} 20. Rad1 {[%clk 0:02:35]}  a6 {[%clk 0:01:56]} 21. h4 {[%clk 0:02:34]}  Qc5 {[%clk 0:01:54]} 22. Be4 {[%clk 0:02:32]}  Rd6 {[%clk 0:01:49]} 23. Qg4 {[%clk 0:02:23]}  Rcd8 {[%clk 0:01:48]} 24. h5 {[%clk 0:02:18]}  Qc8 {[%clk 0:01:27]} 25. Bf5 {[%clk 0:02:08]}  Qc5 {[%clk 0:01:26]} 26. Be4 {[%clk 0:02:07]}  Qc8 {[%clk 0:01:26]} 27. Qf3 {[%clk 0:02:08]}  Qc5 {[%clk 0:01:17]} 28. Qf5 {[%clk 0:02:06]}  Qc8 {[%clk 0:01:17]} 29. Qh7+ {[%clk 0:02:03]}  Kf8 {[%clk 0:01:17]} 30. f4 {[%clk 0:01:57]}  Qg4 {[%clk 0:01:07]} 31. Kg2 {[%clk 0:01:46]}  Bh4 {[%clk 0:00:56]} 32. Re3 {[%clk 0:00:39]}  Qxd1 {[%clk 0:00:49]} 33. Bf3 {[%clk 0:00:39]}  Qd2+ {[%clk 0:00:26]} 34. Re2 {[%clk 0:00:38]}  Qd3 {[%clk 0:00:26]} 35. Qh8+ {[%clk 0:00:25]}  Ke7 {[%clk 0:00:26]} 36. Rxe5+ {[%clk 0:00:26]}  Kf6 {[%clk 0:00:26]} 37. Re8 {[%clk 0:00:15]}  Rxe8 {[%clk 0:00:16]} 38. Qxe8 {[%clk 0:00:16]}  Rxd5 {[%clk 0:00:13]} 39. gxh4 {[%clk 0:00:09]}  Qd2+ {[%clk 0:00:12]} 40. Kh3 {[%clk 0:00:05]}  Qd3 {[%clk 0:00:13]} 41. Kg3 {[%clk 0:00:04]}  g6 {[%clk 0:00:10]} 42. Qh8+ {[%clk 0:00:03]}  Ke6 {[%clk 0:00:10]} 43. Qxh6 {[%clk 0:00:02]}  Rf5 {[%clk 0:00:09]} 44. hxg6 {[%clk 0:00:02]}  fxg6 {[%clk 0:00:09]} 45. Qxg6+ {[%clk 0:00:03]}  Rf6 {[%clk 0:00:10]} 46. Qg4+ {[%clk 0:00:02]}  Kf7 {[%clk 0:00:10]} 47. Qg8+ {[%clk 0:00:03]}  Kxg8 {[%clk 0:00:10]} 0-1


[Site "https://www.chess.com"]